Cogmind - Beta 11.1 --- EXPLORER MODE // 2022.06.14 @ 23:30:18 // Winter2019/RPGLIKE Player: Grimbling Result: Destroyed by MAIN.C with Omega Cannon Performance ------------- Evolutions (9) 4500 Regions Visited (34) 6800 Robots Destroyed (323) 1615 Value Destroyed (16820) 16820 Prototype IDs (48) 960 Alien Tech Used (2) 400 Bonus (15932) 15932 TOTAL SCORE: 47027 Bonus ------- High Alert Combat Kills 886 Follower Combat Kills 981 Network Hubs Disabled 400 Met Data Miner 300 Destroyed Z-Imprinter 1000 Triggered Deep Caves Wall 500 Exposed GOLEM Chamber 500 Met Zhirov 300 Met R17 at Cetus 500 Scanned by Researcher 500 Acquired SGEMP 2000 Destroyed MAIN.C Guards 500 Met MAIN.C 5000 Destroyed MAIN.C Shell 5000 Friendly Fire -2435 Cogmind --------- Core Integrity 0/1600 Matter 300/300 Energy 508/1820 System Corruption 7% Temperature Cool (75) Movement Walking (128) Location -1/Command Parts ------- > --- POWER (5) -------- Zionite Light DM Reactor Light Quantum Reactor Light Quantum Reactor Light Quantum Reactor Improved Quantum Reactor > --- PROPULSION (6) --- Flexi-carbon Leg Flexi-carbon Leg Myomer Leg Biometal Leg Assembled Alloy Leg Assembled Alloy Leg > --- UTILITY (11) ----- Assembled Biocell Array Advanced Terrain Scanner Advanced Particle Charger Advanced Weapon Cycler Experimental Phase Shifter Assembled Alloy Armor Advanced Powered Armor Graphene Brace Experimental Focal Shield GOLEM Unit > --- WEAPON (4) ------- Assembled Focal Cannon Assembled Focal Cannon Assembled Focal Cannon Enhanced Nova Cannon > --- INVENTORY (5) ---- Experimental EM Disruption Field Transdimensional Reconstructor Peak State ------------ > --- POWER ------------ Zionite Light DM Reactor Light Quantum Reactor Light Quantum Reactor Light Quantum Reactor Improved Quantum Reactor > --- PROPULSION ------- Flexi-carbon Leg Flexi-carbon Leg Myomer Leg Biometal Leg Assembled Alloy Leg Assembled Alloy Leg > --- UTILITY ---------- Assembled Biocell Array Advanced Particle Charger Advanced Weapon Cycler Experimental Phase Shifter Assembled Alloy Armor Advanced Powered Armor Graphene Brace Experimental Focal Shield Experimental EM Disruption Field GOLEM Unit > --- WEAPON ----------- Assembled Focal Cannon Assembled Focal Cannon Assembled Focal Cannon Enhanced Nova Cannon > --- INVENTORY -------- Quantum Reactor Advanced Terrain Scanner Transdimensional Reconstructor SGEMP Prototype [Rating: 220] Favorites ----------- Power Zionite Light DM Reactor Engine Light Ion Engine Power Core Micro Nuclear Core Reactor Zionite Light DM Reactor Propulsion Assembled Alloy Leg Leg Assembled Alloy Leg Flight Unit Cesium-ion Thruster Utility GOLEM Unit Device GOLEM Unit Storage Assembled Biocell Array Processor Advanced Signal Interpreter Protection Assembled Alloy Armor Weapon Assembled Focal Cannon Energy Gun EM Pulse Gun Energy Cannon Assembled Focal Cannon Launcher Scatter Rocket Array Impact Weapon Shock Maul Slashing Weapon Katana Build | -11 -10 -10 -9 -9 -9 -8 -8 -8 -7 -7 -7 -7 -6 -6 -6 -6 -6 -6 -5 -5 -5 -5 -5 -4 -4 -4 -4 -4 -4 -3 -3 -2 -1 -1 ------- Run | Scr Mat Min Mat Min Exi Min Mat Sto Fac Low Low Dat Pro Fac Low Low Zio Dee Pro Fac Upp Upp Zhi Pro Fac Ext Cet Arc Hub Res Tes Res Acc Com Slots Evolved 21 | 6 . . 3 . . . 1 . 3 . . . . 1 . . . . . 2 . . . . 1 . 1 . . 1 1 1 . . Power 3 | 1 . . . . . . . . . . . . . . . . . . . 1 . . . . . . . . . . 1 . . . Propulsion 5 | 2 . . 2 . . . . . . . . . . 1 . . . . . . . . . . . . . . . . . . . . Utility 10 | 2 . . 1 . . . 1 . 2 . . . . . . . . . . 1 . . . . 1 . 1 . . 1 . . . . Weapon 3 | 1 . . . . . . . . 1 . . . . . . . . . . . . . . . . . . . . . . 1 . . Parts Attached 175 | 4 9 1 11 2 . 1 2 10 20 . . . 2 7 4 1 9 12 13 3 1 . 7 1 1 6 4 . 4 13 10 6 1 10 Power 32 | 1 2 . 4 . . . . 2 2 . . . . 1 1 . . 4 2 2 1 . 1 . . 1 2 . . 1 3 . . 2 Engine 15 | 1 2 . 3 . . . . 1 1 . . . . 1 1 . . 2 . 2 1 . . . . . . . . . . . . . Core 3 | . . . 1 . . . . 1 1 . . . . . . . . . . . . . . . . . . . . . . . . . Reactor 14 | . . . . . . . . . . . . . . . . . . 2 2 . . . 1 . . 1 2 . . 1 3 . . 2 Propulsion 32 | . 3 1 . 2 . . . 5 8 . . . 2 1 . . . . 6 . . . 1 1 . . . . . 1 1 . . . Treads . | . . . . . . . . . . . . . . . . . . . . . . . . . . . . . . . . . . . Leg 10 | . . . . . . . . . . . . . . . . . . . 6 . . . 1 1 . . . . . 1 1 . . . Wheel . | . . . . . . . . . . . . . . . . . . . . . . . . . . . . . . . . . . . Hover . | . . . . . . . . . . . . . . . . . . . . . . . . . . . . . . . . . . . Flight 22 | . 3 1 . 2 . . . 5 8 . . . 2 1 . . . . . . . . . . . . . . . . . . . . Utility 78 | 1 2 . 1 . . . 1 1 5 . . . . 1 3 1 5 8 5 1 . . 4 . 1 5 1 . 4 10 4 5 1 8 Device 61 | 1 1 . . . . . 1 . 2 . . . . . 2 1 4 4 5 1 . . 4 . 1 3 1 . 4 8 4 5 1 8 Storage . | . . . . . . . . . . . . . . . . . . . . . . . . . . . . . . . . . . . Processor 6 | . 1 . . . . . . . 1 . . . . 1 1 . . . . . . . . . . 2 . . . . . . . . Hackware . | . . . . . . . . . . . . . . . . . . . . . . . . . . . . . . . . . . . Protection 11 | . . . 1 . . . . 1 2 . . . . . . . 1 4 . . . . . . . . . . . 2 . . . . Artifact . | . . . . . . . . . . . . . . . . . . . . . . . . . . . . . . . . . . . Weapon 33 | 2 2 . 6 . . 1 1 2 5 . . . . 4 . . 4 . . . . . 1 . . . 1 . . 1 2 1 . . Energy Gun 12 | 2 2 . 5 . . 1 . 1 . . . . . . . . . . . . . . . . . . 1 . . . . . . . Energy Cannon 5 | . . . . . . . 1 . . . . . . . . . . . . . . . . . . . . . . 1 2 1 . . Ballistic Gun . | . . . . . . . . . . . . . . . . . . . . . . . . . . . . . . . . . . . Ballistic Cannon . | . . . . . . . . . . . . . . . . . . . . . . . . . . . . . . . . . . . Launcher 1 | . . . . . . . . . . . . . . . . . . . . . . . 1 . . . . . . . . . . . Special Weapon . | . . . . . . . . . . . . . . . . . . . . . . . . . . . . . . . . . . . Impact Weapon 6 | . . . . . . . . 1 2 . . . . 2 . . 1 . . . . . . . . . . . . . . . . . Slashing Weapon 9 | . . . 1 . . . . . 3 . . . . 2 . . 3 . . . . . . . . . . . . . . . . . Piercing Weapon . | . . . . . . . . . . . . . . . . . . . . . . . . . . . . . . . . . . . Special Melee Weapon . | . . . . . . . . . . . . . . . . . . . . . . . . . . . . . . . . . . . Unidentified Prototypes 32 | . . . 1 . . . . 1 1 . . . . 1 . 1 2 5 . 1 . . 4 . . . 1 . 2 4 6 1 . 1 Corrupted Parts 1 | . . . . . . . . . . . . . . . . . . . 1 . . . . . . . . . . . . . . . System Corruption 5 | . . . . . . . . . . . . . . . . . . . 5 . . . . . . . . . . . . . . . Parts Lost 2 | . . . . . . . . . . . . . . . . . . 1 . . . . . . . . . . . . 1 . . . Power . | . . . . . . . . . . . . . . . . . . . . . . . . . . . . . . . . . . . Propulsion 1 | . . . . . . . . . . . . . . . . . . . . . . . . . . . . . . . 1 . . . Utility 1 | . . . . . . . . . . . . . . . . . . 1 . . . . . . . . . . . . . . . . Weapon . | . . . . . . . . . . . . . . . . . . . . . . . . . . . . . . . . . . . Highest Loss Streak 1 | . . . . . . . . . . . . . . . . . . 1 . . . . . . . . . . . . 1 . . . To Critical Strikes . | . . . . . . . . . . . . . . . . . . . . . . . . . . . . . . . . . . . Average Slot Usage (%) 92 | . 61 94 89 79 92 96 100 99 98 100 100 100 99 94 97 100 94 95 77 93 94 95 94 95 94 94 95 95 95 94 95 95 96 95 Engine 3 | . 15 20 15 7 7 7 7 6 5 5 5 5 5 4 5 5 5 4 . 7 8 9 7 4 4 . . . . . . . . . Core 1 | . . . . 7 7 7 7 7 5 5 5 5 5 5 5 5 5 . . . . . . . . . . . . . . . . . Reactor 11 | . . . . . . . . . . . . . . . . . . 7 9 9 9 9 10 14 13 17 17 17 17 16 17 19 19 18 Leg 18 | . . . . . . . . . . . . . . . . . . . 15 28 28 28 28 28 27 27 26 26 26 25 24 23 23 23 Flight 7 | . 10 24 25 25 38 38 36 35 30 29 29 29 28 27 33 33 31 31 3 . . . . . . . . . . . . . . . Device 20 | . 10 20 16 15 15 15 18 21 20 23 23 23 23 22 22 22 21 20 17 18 19 19 19 19 21 18 20 21 21 26 24 22 23 24 Storage 2 | . . . . . . . . . . . . . . . . . . . 3 4 4 4 4 4 4 4 4 4 4 4 4 3 3 3 Processor 5 | . 6 10 8 7 7 7 7 7 10 11 11 11 11 11 8 11 10 10 6 4 4 4 4 4 4 8 8 8 8 5 4 3 3 1 Protection 5 | . . . 7 7 7 7 7 6 5 5 5 5 5 5 5 5 5 3 2 4 4 4 4 4 4 4 4 4 4 4 8 7 7 7 Energy Cannon 9 | . . . . . . . 7 1 . . . . . . . . . . 9 14 14 14 13 14 13 13 13 13 13 12 11 14 15 15 Slashing Weapon 2 | . . . 3 7 7 7 7 7 7 17 17 17 17 13 11 11 13 15 5 . . . . . . . . . . . . . . . Naked Turns . | . . . . . . . . . . . . . . . . . . . . . . . . . . . . . . . . . . . Heaviest Build 170 | 6 13 13 24 18 18 22 26 26 33 31 31 31 31 34 39 39 41 41 77 102 102 102 102 102 103 110 122 122 122 129 141 154 158 170 Greatest Support 168 | 3 13 22 22 30 30 30 30 34 35 35 35 35 35 41 41 41 41 41 135 135 135 135 140 150 150 150 150 150 150 163 163 163 163 168 Greatest Overweight (x) 1 | 1 1 . 1 . . . . . . . . . 1 . . . . . 1 . . . . . . . . . . . . . . 1 Average Overweight (x) . | . . . . . . . . . . . . . . . . . . . . . . . . . . . . . . . . . . . Largest Inventory Capacity 5 | 3 3 3 3 3 3 3 3 3 3 3 3 3 3 3 3 3 3 3 3 3 3 3 3 3 3 3 3 3 3 4 4 4 4 5 Average Capacity 3 | 3 3 3 3 3 3 3 3 3 3 3 3 3 3 3 3 3 3 3 3 3 3 3 3 3 3 3 3 3 3 3 4 4 4 4 Most Carried 5 | 3 3 1 3 3 3 3 3 3 3 3 3 3 3 3 3 3 3 3 3 3 3 3 3 3 3 3 3 3 3 4 4 4 4 5 Average Carried 3 | 1 2 1 2 2 3 2 3 2 2 2 3 3 3 3 2 2 2 2 1 2 3 3 2 3 2 2 2 3 2 2 3 4 4 4 Final Capacity 5 | 3 3 3 3 3 3 3 3 3 3 3 3 3 3 3 3 3 3 3 3 3 3 3 3 3 3 3 3 3 3 4 4 4 4 5 Final Carried 4 | 3 1 1 3 3 3 3 3 1 3 3 3 3 3 3 3 2 3 3 3 3 3 3 3 3 2 3 3 3 3 4 4 4 4 2 Class Distribution -------------------- 37% | Generator-Skirmisher 27% | Generator-Tank 8% | Hacker-Ninja 8% | Scavenger-Ninja 4% | Hacker-Scout 3% | Generator-Assassin Dominant Class ---------------- Hacker-Scout | -10/Materials Hacker-Scout | -10/Mines Hacker-Scout | -9/Materials Scavenger-Ninja | -9/Mines Scavenger-Ninja | -9/Exiles Scavenger-Ninja | -8/Mines Scavenger-Ninja | -8/Materials Hacker-Ninja | -8/Storage Hacker-Ninja | -7/Factory Hacker-Ninja | -7/Lower Caves Hacker-Ninja | -7/Lower Caves Hacker-Ninja | -7/Data Miner Hacker-Ninja | -6/Proximity Caves Hacker-Ninja | -6/Factory Hacker-Ninja | -6/Lower Caves Hacker-Ninja | -6/Lower Caves Derelict-Ninja | -6/Zion Scavenger-Ninja | -6/Deep Caves Generator-Assassin | -5/Proximity Caves Generator-Skirmisher | -5/Factory Generator-Skirmisher | -5/Upper Caves Generator-Skirmisher | -5/Upper Caves Generator-Skirmisher | -5/Zhirov Generator-Skirmisher | -4/Proximity Caves Generator-Skirmisher | -4/Factory Generator-Skirmisher | -4/Extension Generator-Skirmisher | -4/Cetus Generator-Skirmisher | -4/Archives Generator-Skirmisher | -4/Hub_04(d) Generator-Skirmisher | -3/Research Generator-Tank | -3/Testing Generator-Tank | -2/Research Generator-Tank | -1/Access Generator-Tank | -1/Command Resources | -11 -10 -10 -9 -9 -9 -8 -8 -8 -7 -7 -7 -7 -6 -6 -6 -6 -6 -6 -5 -5 -5 -5 -5 -4 -4 -4 -4 -4 -4 -3 -3 -2 -1 -1 ----------- Run | Scr Mat Min Mat Min Exi Min Mat Sto Fac Low Low Dat Pro Fac Low Low Zio Dee Pro Fac Upp Upp Zhi Pro Fac Ext Cet Arc Hub Res Tes Res Acc Com Matter Collected 2121 | 240 50 50 110 20 . 10 20 100 200 . . . 12 31 68 47 62 148 143 10 37 10 . 114 10 40 60 . 48 95 110 88 . 188 Remotely . | . . . . . . . . . . . . . . . . . . . . . . . . . . . . . . . . . . . Salvage Created 18144 | 115 384 196 755 80 . 197 115 304 675 96 . . 68 288 . 195 . 879 442 205 88 . . 183 51 707 1064 384 1652 1371 1363 558 1911 3818 Parts 854 | 5 22 7 43 3 . 11 9 10 30 6 . . 6 9 . 3 . 70 18 15 8 . . 9 11 47 40 12 71 47 95 32 90 125 Haulers Intercepted 15 | . 2 . 2 . . . 1 1 1 . . . . 1 . . . . . 1 . . . . . . . . 1 2 1 . 2 . Recyclers Shooed 3 | 1 . . . . . . . . . . . . . . . . . . . . . . . . . 1 . . . 1 . . . . Parts Field Recycled . | . . . . . . . . . . . . . . . . . . . . . . . . . . . . . . . . . . . Retrieved Matter . | . . . . . . . . . . . . . . . . . . . . . . . . . . . . . . . . . . . Parts Self-Destructed . | . . . . . . . . . . . . . . . . . . . . . . . . . . . . . . . . . . . Prevented . | . . . . . . . . . . . . . . . . . . . . . . . . . . . . . . . . . . . Kills | -11 -10 -10 -9 -9 -9 -8 -8 -8 -7 -7 -7 -7 -6 -6 -6 -6 -6 -6 -5 -5 -5 -5 -5 -4 -4 -4 -4 -4 -4 -3 -3 -2 -1 -1 ------- Run | Scr Mat Min Mat Min Exi Min Mat Sto Fac Low Low Dat Pro Fac Low Low Zio Dee Pro Fac Upp Upp Zhi Pro Fac Ext Cet Arc Hub Res Tes Res Acc Com Combat Hostiles Destroyed 225 | . 4 3 15 2 . 2 1 4 12 1 . . 3 1 . 2 . 16 11 3 2 . . 4 4 16 13 4 21 10 22 6 14 29 Melee 44 | . . . 5 2 . 2 1 3 9 1 . . 3 1 . . . 16 1 . . . . . . . . . . . . . . . Guns 15 | . 3 3 9 . . . . . . . . . . . . . . . . . . . . . . . . . . . . . . . Cannons 153 | . . . . . . . . 1 . . . . . . . . . . 9 3 2 . . 4 4 16 13 4 20 9 22 5 13 28 AOE 4 | . 1 . . . . . . . . . . . . . . . . . 1 . . . . . . . . . . 1 . 1 . . Classes Destroyed 24 | 2 5 . 2 . . 1 . 2 1 1 . . . . . 1 . 2 . . . . . . . . 1 . 1 . 3 1 1 . Worker 14 | . 1 . . 1 . . . 1 3 . . . . 2 . . . . . . . . . . . . . . . 2 1 1 2 . Builder 9 | . . . . . . 1 . . . . . . . . . . . . . 1 . . . . . . . . . 4 . 1 2 . Tunneler 8 | 2 1 1 . 1 . 1 . . 1 . . . . 1 . . . . . . . . . . . . . . . . . . . . Hauler 15 | . 2 . 2 . . . 1 1 1 . . . . 1 . . . . . 1 . . . . . . . . 1 2 1 . 2 . Recycler 8 | 1 1 . 2 . . 1 . . 1 . . . . . . . . . . . . . . . . . . . . 1 . . . 1 Carrier 1 | . . . . . . . . . . . . . . . . . . . . . . . . . . . 1 . . . . . . . Operator 9 | . . . . . . . . 1 1 . . . . 1 . . . . . . . . . . 1 . . . 1 1 1 1 . 1 Watcher 34 | . 3 . 3 . . . 2 . 4 . . . . 2 . . . . . . . . . . . 3 2 . 1 4 1 1 5 3 Swarmer 39 | . 2 1 . 2 . . . . 5 . . . 3 . . . . . 2 . . . . . 3 6 4 . 4 2 . . . 5 Grunt 55 | . 2 2 9 . . 2 1 2 4 . . . . . . . . . 5 . . . . 2 . 2 5 . 2 . 9 . 4 4 Brawler 1 | . . . . . . . . . . . . . . . . . . . . . . . . . . . . . . . . . 1 . Duelist 5 | . . . 2 . . . . . 1 . . . . . . . . . 1 . . . . . . . . . . 1 . . . . Protector 1 | . . . . . . . . . . . . . . . . . . . . . . . . . . . . . 1 . . . . . Researcher 3 | . . . . . . . . . . . . . . . . . . . . . . . . . . . . . . . 3 . . . Sentry 29 | . . . 4 . . . . 1 . . . . . 1 . 1 . . 1 . . . . . 1 4 . 4 4 5 . 2 . 1 Hunter 26 | . . . . . . . . 1 . . . . . . . . . . 2 . 2 . . 2 . 2 . . 4 2 2 1 6 2 Programmer 25 | . . . . . . . . . 2 . . . . . . . . . . 2 . . . . . 2 . . 3 . 7 2 . 7 Q-Series 3 | . . . . . . . . . . . . . . . . . . . . . . . . . . . . . . . . 1 2 . Behemoth 4 | . . . . . . . . . . . . . . . . 1 . . . 1 . . . . . . . . . . . . 1 1 Cetus Guard 4 | . . . . . . . . . . . . . . . . . . . . . . . . . . . 4 . . . . . . . M Guard 2 | . . . . . . . . . . . . . . . . . . . . . . . . . . . . . . . . . . 2 Lightning 3 | . . . . . . . . . . . . . . . . . . . . . . . . . . . . . 3 . . . . . Combat Programmer 2 | . . . . . . . . . . . . . . . . . . . . . . . . . . . . . . . . . . 2 Striker 2 | . . . . . . . . . . . . . . . . . . . . . . . . . . . . . . . 2 . . . Alpha 7 1 | . . . . . . . . . . . . . . . . . . . . . . . . . . . . . . . 1 . . . Protovariant G 1 | . . . . . . . . . . . . . . . . . . . . . . . . . . . . . . . 1 . . . Z-Technician 5 | . . . . . . . . . . . . . . . . . . 5 . . . . . . . . . . . . . . . . Z-Light 11 | . . . . . . . . . . . . . . . . . . 11 . . . . . . . . . . . . . . . . Packrat 1 | . . . . . . . . . . . . . . . . . . . . . 1 . . . . . . . . . . . . . Assembled 4 | . . . . . . . . . . . . . . . . . . 4 . . . . . . . . . . . . . . . . Thug 2 | . . . . . . . . . . . . . . . . . . . . . . . . . . . . . . . . . . 2 Mutant 3 | . . . . . . . . . . 1 . . . . . . . . . . . . . . . . . . . . . . . 2 Best Kill Streak 13 | 3 3 2 6 3 . 2 2 3 11 1 . . 3 3 . 1 . 8 3 3 2 . . 2 2 4 6 4 7 6 5 2 13 6 Combat Bots Only 8 | . 2 2 4 2 . 2 1 2 7 1 . . 3 1 . 1 . 3 3 2 2 . . 2 2 4 6 4 6 3 4 2 8 5 Max Kills in Single Turn 3 | 1 2 1 1 1 . 1 1 1 2 1 . . 1 1 . 1 . 1 1 1 1 . . 1 1 2 2 1 1 3 1 1 3 2 Gunslinging 1 | . 1 . . . . . . . . . . . . . . . . . . . . . . . . . . . . . . . . . Exploded 1 | . 1 . . . . . . . . . . . . . . . . . 1 . . . . . . . . . . 1 . 1 . . Melee 2 | . . . 1 1 . 1 1 1 2 1 . . 1 1 . . . 1 1 . . . . . . . . . . . . . . . Uniques/NPCs Destroyed 3 | . . . . . . . . . . . . . . . . . . 1 . . . . . . . . 1 . . . . . . 1 Z-Imprinter (-6/Deep Caves) A7 (-4/Cetus) MAIN.C Shell (-1/Command) Combat | -11 -10 -10 -9 -9 -9 -8 -8 -8 -7 -7 -7 -7 -6 -6 -6 -6 -6 -6 -5 -5 -5 -5 -5 -4 -4 -4 -4 -4 -4 -3 -3 -2 -1 -1 -------- Run | Scr Mat Min Mat Min Exi Min Mat Sto Fac Low Low Dat Pro Fac Low Low Zio Dee Pro Fac Upp Upp Zhi Pro Fac Ext Cet Arc Hub Res Tes Res Acc Com Damage Taken 11011 | . 6 81 243 40 . 70 57 291 190 6 . . 77 52 . 122 . 1678 420 159 41 . . 178 8 350 128 47 480 480 1129 596 334 3748 Core 7837 | . 4 66 178 29 . 59 42 188 120 4 . . 55 30 . 82 . 1247 321 124 28 . . 133 6 258 85 33 352 371 796 467 220 2539 Absorbed by Shields 1160 | . . . . . . . 16 120 80 2 . . 34 21 . 36 . 83 . . . . . . . 80 142 53 493 . . . . . Redirected to Core 7029 | . 4 45 122 17 . 34 28 146 78 4 . . 40 24 . 67 . 1036 285 114 28 . . 121 6 254 82 26 338 361 688 467 220 2394 Core Remaining (%) 95 | 100 . 89 . . . 100 . 96 . . . . 94 . . . . . 78 . . . . 100 . . . . 100 . 100 98 . . Volleys Fired 616 | 9 20 10 36 . . . . 6 . . . . . . . . . . 23 7 6 3 . 11 8 33 31 11 55 41 82 25 38 161 Largest 4 | 1 2 2 2 . . . . 1 . . . . . . . . . . 3 3 3 3 . 3 3 3 3 3 3 3 3 4 4 4 Hottest 195 | 40 80 80 112 . . . . 60 . . . . . . . . . . 75 75 75 75 . 75 75 75 75 75 75 75 75 195 195 195 Shots Fired 1845 | 9 40 20 72 . . . . 6 . . . . . . . . . . 69 22 18 9 . 33 24 99 93 33 154 123 240 99 138 544 Gun 141 | 9 40 20 72 . . . . . . . . . . . . . . . . . . . . . . . . . . . . . . . Cannon 1704 | . . . . . . . . 6 . . . . . . . . . . 69 22 18 9 . 33 24 99 93 33 154 123 240 99 138 544 Launcher . | . . . . . . . . . . . . . . . . . . . . . . . . . . . . . . . . . . . Special . | . . . . . . . . . . . . . . . . . . . . . . . . . . . . . . . . . . . Kinetic . | . . . . . . . . . . . . . . . . . . . . . . . . . . . . . . . . . . . Thermal 1776 | . . . 72 . . . . 6 . . . . . . . . . . 69 22 18 9 . 33 24 99 93 33 154 123 240 99 138 544 Explosive . | . . . . . . . . . . . . . . . . . . . . . . . . . . . . . . . . . . . Electromagnetic 69 | 9 40 20 . . . . . . . . . . . . . . . . . . . . . . . . . . . . . . . . Robot Hit Streak 86 | 9 11 13 26 . . . . 8 . . . . . . . . . . 19 19 15 . . 14 20 55 77 53 67 33 43 40 47 86 Robot Miss Streak 3 | . 1 1 2 . . . . 1 . . . . . . . . . . 2 2 1 . . 1 . 2 2 1 3 1 1 1 2 2 Penetration Max . | . . . . . . . . . . . . . . . . . . . . . . . . . . . . . . . . . . . Secondary Targets 3 | . 1 . 2 . . . . . . . . . . . . . . . . . . . . . . . . . . . . . . . Max Gunslinging Chain 1 | . 1 . 1 . . . . . . . . . . . . . . . . . . . . . . . . . . . . . . . Shots Hit Robots 1588 | 9 31 18 78 7 . 9 13 21 43 4 . . 3 13 . 13 . 80 45 16 14 . . 21 13 69 73 28 91 93 174 74 101 434 Core Hits 536 | 4 14 7 33 3 . 4 4 6 11 2 . . 3 4 . 2 . 30 15 7 5 . . 9 6 28 28 10 39 35 52 18 40 117 Critical Kills 4 | . . . . . . . . . 2 . . . . . . . . . . . . . . . . . . . . . . . 1 1 Critical Parts Destroyed 15 | . . . . . . . . 1 7 . . . . 2 . 5 . . . . . . . . . . . . . . . . . . Critical Strikes 39 | . 1 1 9 . . 2 1 2 11 . . . . 2 . 6 . 2 . . . . . . . . . . . . . . 1 1 Burn 8 | . . . 8 . . . . . . . . . . . . . . . . . . . . . . . . . . . . . . . Meltdown 2 | . . . . . . . . . . . . . . . . . . . . . . . . . . . . . . . . . 1 1 Corrupt 2 | . 1 1 . . . . . . . . . . . . . . . . . . . . . . . . . . . . . . . . Smash 17 | . . . . . . . . 1 9 . . . . 2 . 5 . . . . . . . . . . . . . . . . . . Sever 10 | . . . 1 . . 2 1 1 2 . . . . . . 1 . 2 . . . . . . . . . . . . . . . . Melee Attacks 292 | . . . 17 8 . 9 17 24 66 4 . . 5 21 . 15 12 90 4 . . . . . . . . . . . . . . . Impact 75 | . . . . . . . . 8 45 . . . . 6 . 8 8 . . . . . . . . . . . . . . . . . Slashing 217 | . . . 17 8 . 9 17 16 21 4 . . 5 15 . 7 4 90 4 . . . . . . . . . . . . . . . Piercing . | . . . . . . . . . . . . . . . . . . . . . . . . . . . . . . . . . . . Sneak Attacks 41 | . . . 3 3 . 3 1 5 10 . . . . 8 . . . 8 . . . . . . . . . . . . . . . . Combat Hostiles 11 | . . . . . . . . . 5 . . . . 3 . . . 3 . . . . . . . . . . . . . . . . Follow-up Attacks 38 | . . . . . . . . 1 12 . . . 1 1 . 6 . 17 . . . . . . . . . . . . . . . . Damage Inflicted 71540 | 120 634 261 1475 340 . 413 491 937 2474 142 . . 95 920 . 556 . 4612 2059 909 598 30 . 1034 551 3338 3208 1182 4412 4383 7119 3244 5354 20649 Guns 1648 | 120 495 233 800 . . . . . . . . . . . . . . . . . . . . . . . . . . . . . . . Cannons 57344 | . . . . . . . . 116 . . . . . . . . . . 1956 710 598 . . 1034 551 3324 3208 1182 4232 4137 7115 3192 5340 20649 Explosions 832 | . 139 28 . . . . . . . . . . . . . . . . . 199 . . . . . . . . 180 234 . 52 . . Melee 11622 | . . . 655 340 . 413 491 821 2474 142 . . 95 920 . 556 . 4612 103 . . . . . . . . . . . . . . . Ramming 94 | . . . 20 . . . . . . . . . . . . . . . . . . 30 . . . 14 . . . 12 4 . 14 . Kinetic . | . . . . . . . . . . . . . . . . . . . . . . . . . . . . . . . . . . . Thermal 58510 | . 139 28 800 . . . . 116 . . . . . . . . . . 1956 909 598 . . 1034 551 3324 3208 1182 4232 4137 7115 3192 5340 20649 Explosive 234 | . . . . . . . . . . . . . . . . . . . . . . . . . . . . . . 234 . . . . Electromagnetic 1080 | 120 495 233 . . . . . . . . . . . . . . . . . . . . . . . . . . 180 . . 52 . . Impact 3040 | . . . . . . . . 314 1951 . . . . 455 . 320 . . . . . . . . . . . . . . . . . . Slashing 8582 | . . . 655 340 . 413 491 507 523 142 . . 95 465 . 236 . 4612 103 . . . . . . . . . . . . . . . Piercing . | . . . . . . . . . . . . . . . . . . . . . . . . . . . . . . . . . . . Highest Corruption 7 | . . . . . . . . . 3 3 3 3 3 . . . . . 6 1 1 1 1 1 . . . . 7 . . 1 . 7 Average Corruption 2 | . . . . . . . . . 2 3 3 3 3 . . . . . 3 1 1 1 1 1 . . . . 3 . . 1 . 3 Corruption Purged . | . . . . . . . . . . . . . . . . . . . . . . . . . . . . . . . . . . . Corruption Blocked . | . . . . . . . . . . . . . . . . . . . . . . . . . . . . . . . . . . . Effects 81 | . . . . . . . . . 6 2 1 . 2 . . . . . 17 2 3 7 2 7 . . . . 8 . . 2 . 22 Message Errors 22 | . . . . . . . . . 3 . 1 . 1 . . . . . 10 . 1 1 . 3 . . . . 1 . . . . 1 Matter Fused 20 | . . . . . . . . . . . . . 1 . . . . . 2 1 . 2 1 2 . . . . 1 . . . . 10 Heat Flow Errors 9 | . . . . . . . . . 1 1 . . . . . . . . 1 . 1 1 . . . . . . 1 . . . . 3 Energy Discharges 7 | . . . . . . . . . . 1 . . . . . . . . 1 . . . 1 1 . . . . . . . . . 3 Parts Rejected 2 | . . . . . . . . . . . . . . . . . . . . . . . . . . . . . 1 . . . . 1 Data Loss (minor) 9 | . . . . . . . . . 2 . . . . . . . . . 2 . 1 3 . . . . . . . . . . . 1 Data Loss (major) 2 | . . . . . . . . . . . . . . . . . . . 1 . . . . 1 . . . . . . . . . . Misfires 3 | . . . . . . . . . . . . . . . . . . . . 1 . . . . . . . . . . . 2 . . Alerts 4 | . . . . . . . . . . . . . . . . . . . . . . . . . . . . . 3 . . . . 1 Weapon Failures 3 | . . . . . . . . . . . . . . . . . . . . . . . . . . . . . 1 . . . . 2 Overload Shots . | . . . . . . . . . . . . . . . . . . . . . . . . . . . . . . . . . . . Overflow Damage 4561 | . . . 45 44 . 66 29 194 962 . . . . 435 . 233 . 394 39 42 28 27 . 17 16 193 118 . 113 289 366 219 166 526 Projectiles 2132 | . . . . . . . . . . . . . . . . . . . 39 42 28 . . 17 16 193 118 . 113 289 366 219 166 526 Explosions . | . . . . . . . . . . . . . . . . . . . . . . . . . . . . . . . . . . . Melee 2429 | . . . 45 44 . 66 29 194 962 . . . . 435 . 233 . 394 . . . 27 . . . . . . . . . . . . Knockbacks 12 | . . . . . . . . . 10 . . . . 2 . . . . . . . . . . . . . . . . . . . . Impact 11 | . . . . . . . . . 9 . . . . 2 . . . . . . . . . . . . . . . . . . . . Kinetic . | . . . . . . . . . . . . . . . . . . . . . . . . . . . . . . . . . . . Secondary 1 | . . . . . . . . . 1 . . . . . . . . . . . . . . . . . . . . . . . . . Self-Inflicted Damage 168 | . . 11 20 . . . . . . . . . . . . . . . . . . . . . . . . . 92 45 . . . . Shots 4 | . . 1 . . . . . . . . . . . . . . . . . . . . . . . . . . 2 1 . . . . Rammed . | . . . . . . . . . . . . . . . . . . . . . . . . . . . . . . . . . . . Targets Rammed 6 | . . . . . . . . . . . . . . . . . . . . . . 1 . . . 1 . . . 1 2 . 1 . Kicked 6 | . . . . . . . . . . . . . . . . . . . . . . 1 . . . 1 . . . 1 2 . 1 . Crushed . | . . . . . . . . . . . . . . . . . . . . . . . . . . . . . . . . . . . Highest Temperature 299 | 20 176 222 198 . . . 6 16 229 44 . . . . . . . . 77 . 192 117 . . . . . . 206 . 219 . 9 299 Average Temperature 69 | 20 52 96 28 . . . 6 6 129 44 . . . . . . . . 45 . 106 63 . . . . . . 109 . 144 . 6 72 Received Heat Transfer 2096 | . . 48 147 . . 54 63 230 53 . . . 4 . . 34 . 428 165 36 . . . 42 . 89 4 16 29 90 303 . . 261 Effects 2 | . . . . . . . . . . . . . . . . . . . . . . . . . . . . . 1 . 1 . . . Energy Bleed 2 | . . . . . . . . . . . . . . . . . . . . . . . . . . . . . 1 . 1 . . . Siege Activations . | . . . . . . . . . . . . . . . . . . . . . . . . . . . . . . . . . . . Robots Corrupted 1 | . . . . . . . . . . . . . . . . . . . . . . . . . . . . . 1 . . . . . Combat Hostiles 1 | . . . . . . . . . . . . . . . . . . . . . . . . . . . . . 1 . . . . . Parts Fried 36 | . 7 . . . . . . 2 15 . . . . 2 . 3 . . . . . . . . . 1 . . 5 . . 1 . . Impact Corruptions 53 | . . . . . . . . 3 27 . . . . 11 . 5 . . . . . 7 . . . . . . . . . . . . Robots Melted 3 | . . . 1 . . . . . . . . . . . . . . . . . . . . . . . . . . . . . 1 1 Combat Hostiles 3 | . . . 1 . . . . . . . . . . . . . . . . . . . . . . . . . . . . . 1 1 Parts Melted 50 | . . . 7 . . . . 3 . . . . . . . . . . 2 1 . . . 1 1 1 . 2 5 6 3 4 4 10 Heat Transferred 29833 | . 150 . 2886 . . . . 185 . . . . . . . . . . 1125 525 350 . . 575 325 1850 1746 700 2336 2300 4250 2093 2590 5847 Parts Sabotaged . | . . . . . . . . . . . . . . . . . . . . . . . . . . . . . . . . . . . Parts Stolen . | . . . . . . . . . . . . . . . . . . . . . . . . . . . . . . . . . . . Parts Stripped . | . . . . . . . . . . . . . . . . . . . . . . . . . . . . . . . . . . . Power Chain Reactions 3 | . 2 1 . . . . . . . . . . . . . . . . . . . . . . . . . . . . . . . . Missiles Intercepted . | . . . . . . . . . . . . . . . . . . . . . . . . . . . . . . . . . . . Alert | -11 -10 -10 -9 -9 -9 -8 -8 -8 -7 -7 -7 -7 -6 -6 -6 -6 -6 -6 -5 -5 -5 -5 -5 -4 -4 -4 -4 -4 -4 -3 -3 -2 -1 -1 ------- Run | Scr Mat Min Mat Min Exi Min Mat Sto Fac Low Low Dat Pro Fac Low Low Zio Dee Pro Fac Upp Upp Zhi Pro Fac Ext Cet Arc Hub Res Tes Res Acc Com Peak Influence 786 | 15 176 72 556 115 . 70 265 411 539 . . . . 161 . . . . . 272 . . . . 211 569 440 179 770 357 251 140 453 786 Initial 300 | . 7 7 14 33 . . 19 79 135 . . . . 57 . . . . . 96 . . . . . 75 . 76 42 300 19 73 9 98 Average 197 | 9 54 25 224 34 . 43 113 197 292 . . . . 62 . . . . . 189 . . . . 90 252 214 146 462 153 89 54 150 382 Maximum Alert Level 3 | . . . 2 . . . 1 2 2 . . . . . . . . . . 1 . . . . 1 2 2 . 3 1 1 . 2 3 Low Security (%) 60 | 100 100 100 48 100 . 100 82 49 26 . . . . 100 . . . . . 70 . . . . 86 21 44 100 9 72 92 100 73 31 Level 1 24 | . . . 29 . . . 17 50 43 . . . . . . . . . . 29 . . . . 13 64 45 . 33 27 7 . 22 18 Level 2 13 | . . . 21 . . . . . 30 . . . . . . . . . . . . . . . . 14 10 . 43 . . . 4 43 Level 3 1 | . . . . . . . . . . . . . . . . . . . . . . . . . . . . . 14 . . . . 6 Level 4 . | . . . . . . . . . . . . . . . . . . . . . . . . . . . . . . . . . . . Level 5 . | . . . . . . . . . . . . . . . . . . . . . . . . . . . . . . . . . . . High Security . | . . . . . . . . . . . . . . . . . . . . . . . . . . . . . . . . . . . Max Security . | . . . . . . . . . . . . . . . . . . . . . . . . . . . . . . . . . . . Squads Dispatched 32 | . . . . . . . 1 4 5 . . . . 1 . . . . . . . . . . 1 . 1 . 3 . 7 2 1 6 Investigation 5 | . . . . . . . . 1 2 . . . . 1 . . . . . . . . . . . . 1 . . . . . . . Extermination 12 | . . . . . . . . . 1 . . . . . . . . . . . . . . . . . . . 1 . 3 2 1 4 Reinforcement 12 | . . . . . . . 1 1 1 . . . . . . . . . . . . . . . 1 . . . 2 . 4 . . 2 Assault 2 | . . . . . . . . 2 . . . . . . . . . . . . . . . . . . . . . . . . . . Garrison 1 | . . . . . . . . . 1 . . . . . . . . . . . . . . . . . . . . . . . . . Intercept . | . . . . . . . . . . . . . . . . . . . . . . . . . . . . . . . . . . . Searches Triggered . | . . . . . . . . . . . . . . . . . . . . . . . . . . . . . . . . . . . Construction Impeded . | . . . . . . . . . . . . . . . . . . . . . . . . . . . . . . . . . . . Haulers Reinforced 2 | . . . . . . . . . 1 . . . . . . . . . . . . . . . . . . . 1 . . . . . Active Scanning Responses . | . . . . . . . . . . . . . . . . . . . . . . . . . . . . . . . . . . . Cargo Convoy Interrupts . | . . . . . . . . . . . . . . . . . . . . . . . . . . . . . . . . . . . Stealth | -11 -10 -10 -9 -9 -9 -8 -8 -8 -7 -7 -7 -7 -6 -6 -6 -6 -6 -6 -5 -5 -5 -5 -5 -4 -4 -4 -4 -4 -4 -3 -3 -2 -1 -1 --------- Run | Scr Mat Min Mat Min Exi Min Mat Sto Fac Low Low Dat Pro Fac Low Low Zio Dee Pro Fac Upp Upp Zhi Pro Fac Ext Cet Arc Hub Res Tes Res Acc Com Distress Signals 16 | . . . 2 . . . 2 3 . . . . . . . . . . . . . . . . . . 1 . . . 1 . 1 6 Communications Jammed 134 | . . . . . . . . . 1 . . . . 3 . . . . . . . . . . . . 62 . 4 3 46 1 14 . Distress Signals 134 | . . . . . . . . . 1 . . . . 3 . . . . . . . . . . . . 62 . 4 3 46 1 14 . Times Spotted 408 | . 7 5 27 3 . 2 11 45 25 1 . . 9 4 3 2 . 52 14 3 2 . . 4 4 20 21 4 25 16 29 9 21 40 Peak Tracking Total 40 | . 2 2 4 2 . 2 5 16 4 1 . . 5 3 3 1 . 40 4 2 2 . . 2 1 7 5 2 4 3 4 2 6 7 Tactical Retreats 38 | . . 2 5 1 . . 3 7 6 . . . 1 1 2 . . . 4 . . . . . . 1 1 . 1 . . . 1 2 Traps | -11 -10 -10 -9 -9 -9 -8 -8 -8 -7 -7 -7 -7 -6 -6 -6 -6 -6 -6 -5 -5 -5 -5 -5 -4 -4 -4 -4 -4 -4 -3 -3 -2 -1 -1 ------- Run | Scr Mat Min Mat Min Exi Min Mat Sto Fac Low Low Dat Pro Fac Low Low Zio Dee Pro Fac Upp Upp Zhi Pro Fac Ext Cet Arc Hub Res Tes Res Acc Com Traps Triggered 11 | . 1 . . . . . . 2 2 . . . . 1 . . . . . . . . . . . 1 . . 1 2 . 1 . . Indirectly . | . . . . . . . . . . . . . . . . . . . . . . . . . . . . . . . . . . . Trap Hack Attempts . | . . . . . . . . . . . . . . . . . . . . . . . . . . . . . . . . . . . Triggered . | . . . . . . . . . . . . . . . . . . . . . . . . . . . . . . . . . . . Disarmed . | . . . . . . . . . . . . . . . . . . . . . . . . . . . . . . . . . . . Reprogrammed . | . . . . . . . . . . . . . . . . . . . . . . . . . . . . . . . . . . . Reused . | . . . . . . . . . . . . . . . . . . . . . . . . . . . . . . . . . . . Traps Extracted . | . . . . . . . . . . . . . . . . . . . . . . . . . . . . . . . . . . . Installed . | . . . . . . . . . . . . . . . . . . . . . . . . . . . . . . . . . . . Triggered 5 | . . . . . . . . . . . . . . . 1 . . . 3 . . 1 . . . . . . . . . . . . Machines | -11 -10 -10 -9 -9 -9 -8 -8 -8 -7 -7 -7 -7 -6 -6 -6 -6 -6 -6 -5 -5 -5 -5 -5 -4 -4 -4 -4 -4 -4 -3 -3 -2 -1 -1 ---------- Run | Scr Mat Min Mat Min Exi Min Mat Sto Fac Low Low Dat Pro Fac Low Low Zio Dee Pro Fac Upp Upp Zhi Pro Fac Ext Cet Arc Hub Res Tes Res Acc Com Machines Disabled 48 | . . . . . . . . 2 1 . . . . . . . 3 1 . 7 . . . . 2 4 2 1 8 1 8 1 2 5 Max in Single Turn 7 | . . . . . . . . 1 1 . . . . . . . 1 1 . 7 . . . . 2 1 1 1 2 1 1 1 1 2 Garrison Access 4 | . . . . . . . . 1 . . . . . 1 . . . . . . . . . . . . . . . 2 . . . . Phase Generator 1 | . . . . . . . . . . . . . . . . . . . . . . . . . . . . . . . . . . 1 Network Hub 2 | . . . . . . . . . . . . . . . . . . . . . . . . . . . . . 2 . . . . . Machines Sabotaged . | . . . . . . . . . . . . . . . . . . . . . . . . . . . . . . . . . . . Garrisons Compromised . | . . . . . . . . . . . . . . . . . . . . . . . . . . . . . . . . . . . Overloaded Fab Kills . | . . . . . . . . . . . . . . . . . . . . . . . . . . . . . . . . . . . Hacking | -11 -10 -10 -9 -9 -9 -8 -8 -8 -7 -7 -7 -7 -6 -6 -6 -6 -6 -6 -5 -5 -5 -5 -5 -4 -4 -4 -4 -4 -4 -3 -3 -2 -1 -1 --------- Run | Scr Mat Min Mat Min Exi Min Mat Sto Fac Low Low Dat Pro Fac Low Low Zio Dee Pro Fac Upp Upp Zhi Pro Fac Ext Cet Arc Hub Res Tes Res Acc Com Machines Accessed 63 | . 6 1 5 1 . 1 4 8 7 . . 4 . 5 1 . 1 . . . . 1 . . 1 1 1 . 1 5 2 3 2 2 Terminals 48 | . 6 1 5 . . 1 4 7 4 . . . . 3 . . . . . . . 1 . . 1 1 1 . 1 3 2 3 2 2 Fabricators 2 | . . . . . . . . . 2 . . . . . . . . . . . . . . . . . . . . . . . . . Repair Stations . | . . . . . . . . . . . . . . . . . . . . . . . . . . . . . . . . . . . Recycling Units . | . . . . . . . . . . . . . . . . . . . . . . . . . . . . . . . . . . . Scanalyzers 1 | . . . . . . . . . . . . . . 1 . . . . . . . . . . . . . . . . . . . . Garrison Access 5 | . . . . . . . . 1 1 . . . . 1 . . . . . . . . . . . . . . . 2 . . . . Total Hacks 180 | . 14 3 16 1 . 2 9 23 15 . . 29 . 15 1 . 2 . . . . 1 . . 1 3 2 . 1 15 8 7 8 4 Successful 97 | . 7 2 9 1 . 2 2 7 9 . . 29 . 7 1 . 2 . . . . 1 . . 1 . . . . 5 3 4 3 2 Failed 83 | . 7 1 7 . . . 7 16 6 . . . . 8 . . . . . . . . . . . 3 2 . 1 10 5 3 5 2 Catastrophic 19 | . . . 2 . . . 1 3 1 . . . . 2 . . . . . . . . . . . . 2 . 1 2 2 . 2 1 Database Lockouts . | . . . . . . . . . . . . . . . . . . . . . . . . . . . . . . . . . . . Manual 76 | . 8 3 11 . . 1 8 14 6 . . . . 10 . . . . . . . . . . . 3 1 . 1 5 . 4 1 . Terminals 129 | . 14 3 16 . . 2 9 22 8 . . . . 10 . . . . . . . 1 . . 1 3 2 . 1 10 8 7 8 4 Fabricators 5 | . . . . . . . . . 5 . . . . . . . . . . . . . . . . . . . . . . . . . Repair Stations . | . . . . . . . . . . . . . . . . . . . . . . . . . . . . . . . . . . . Recycling Units . | . . . . . . . . . . . . . . . . . . . . . . . . . . . . . . . . . . . Scanalyzers 3 | . . . . . . . . . . . . . . 3 . . . . . . . . . . . . . . . . . . . . Garrison Access 10 | . . . . . . . . 1 2 . . . . 2 . . . . . . . . . . . . . . . 5 . . . . Terminal Hacks 87 | . 7 2 9 1 . 2 2 6 4 . . 29 . 5 1 . 2 . . . . 1 . . 1 . . . . 3 3 4 3 2 Record 12 | . . . . . . . . . . . . 11 . . . . . . . . . 1 . . . . . . . . . . . . Part Schematic 15 | . . . 1 . . . . 1 . . . 11 . . . . 2 . . . . . . . . . . . . . . . . . Robot Schematic 4 | . . . . . . . . . . . . 4 . . . . . . . . . . . . . . . . . . . . . . Robot Analysis 2 | . 1 . . . . . . . 1 . . . . . . . . . . . . . . . . . . . . . . . . . Prototype ID Bank 5 | . 2 . . . . . . . . . . 3 . . . . . . . . . . . . . . . . . . . . . . Open Door 6 | . . . . 1 . . . 2 . . . . . . 1 . . . . . . . . . 1 . . . . . . . . 1 Level Access Points 1 | . . . . . . . . . . . . . . . . . . . . . . . . . . . . . . . . 1 . . Branch Access Points 6 | . . . 1 . . . 1 . 1 . . . . 1 . . . . . . . . . . . . . . . . . 1 1 . Alert Level 2 | . . . 1 . . . . . . . . . . . . . . . . . . . . . . . . . . . 1 . . . Unreport Threat 25 | . 2 2 5 . . 1 . 3 2 . . . . 4 . . . . . . . . . . . . . . . 3 . 1 2 . Registered Components 1 | . . . . . . . . . . . . . . . . . . . . . . . . . . . . . . . . 1 . . Zone Layout 6 | . 2 . 1 . . 1 1 . . . . . . . . . . . . . . . . . . . . . . . 1 . . . Protovariant Controls 1 | . . . . . . . . . . . . . . . . . . . . . . . . . . . . . . . 1 . . . Disengage Seal 1 | . . . . . . . . . . . . . . . . . . . . . . . . . . . . . . . . . . 1 Fabricator Hacks 4 | . . . . . . . . . 4 . . . . . . . . . . . . . . . . . . . . . . . . . Load Schematic 2 | . . . . . . . . . 2 . . . . . . . . . . . . . . . . . . . . . . . . . Build 2 | . . . . . . . . . 2 . . . . . . . . . . . . . . . . . . . . . . . . . Repair Station Hacks . | . . . . . . . . . . . . . . . . . . . . . . . . . . . . . . . . . . . Recycling Unit Hacks . | . . . . . . . . . . . . . . . . . . . . . . . . . . . . . . . . . . . Scanalyzer 1 | . . . . . . . . . . . . . . 1 . . . . . . . . . . . . . . . . . . . . Insert Component 1 | . . . . . . . . . . . . . . 1 . . . . . . . . . . . . . . . . . . . . Garrison Access Hacks 4 | . . . . . . . . 1 . . . . . 1 . . . . . . . . . . . . . . . 2 . . . . Seal Access 4 | . . . . . . . . 1 . . . . . 1 . . . . . . . . . . . . . . . 2 . . . . Unauthorized Hacks 1 | . . . . . . . . . 1 . . . . . . . . . . . . . . . . . . . . . . . . . Terminals 1 | . . . . . . . . . 1 . . . . . . . . . . . . . . . . . . . . . . . . . Assimilate 1 | . . . . . . . . . 1 . . . . . . . . . . . . . . . . . . . . . . . . . Fabricators . | . . . . . . . . . . . . . . . . . . . . . . . . . . . . . . . . . . . Repair Stations . | . . . . . . . . . . . . . . . . . . . . . . . . . . . . . . . . . . . Recycling Units . | . . . . . . . . . . . . . . . . . . . . . . . . . . . . . . . . . . . Scanalyzers . | . . . . . . . . . . . . . . . . . . . . . . . . . . . . . . . . . . . Garrison Access . | . . . . . . . . . . . . . . . . . . . . . . . . . . . . . . . . . . . Data Cores Recovered 7 | . . . . . . . . 1 1 . . . . 1 . . . . . . . . . . . . . . 1 1 . 1 . 1 Used 3 | . . . . . . . . . . . . . . . . . . . . . . . . . . . . . 1 1 . 1 . . Hacking Detections 44 | . 6 1 4 . . 1 4 6 4 . . . . 4 . . . . . . . . . . . 1 1 . 1 4 2 2 2 1 Full Trace Events 7 | . 1 . . . . . . 2 2 . . . . 1 . . . . . . . . . . . . 1 . . . . . . . Feedback Events . | . . . . . . . . . . . . . . . . . . . . . . . . . . . . . . . . . . . Feedback Blocked . | . . . . . . . . . . . . . . . . . . . . . . . . . . . . . . . . . . . Robot Schematics Acquired 6 | . . . . . . . . . . . . 4 . . . . 2 . . . . . . . . . . . . . . . . . Robots Built . | . . . . . . . . . . . . . . . . . . . . . . . . . . . . . . . . . . . Authchips . | . . . . . . . . . . . . . . . . . . . . . . . . . . . . . . . . . . . Time . | . . . . . . . . . . . . . . . . . . . . . . . . . . . . . . . . . . . Total Robot Build Rating . | . . . . . . . . . . . . . . . . . . . . . . . . . . . . . . . . . . . Part Schematics Acquired 31 | . . . 1 . . . . 1 . . . 11 . . . . 18 . . . . . . . . . . . . . . . . . Parts Built 4 | . . . . . . . . . 4 . . . . . . . . . . . . . . . . . . . . . . . . . Authchips . | . . . . . . . . . . . . . . . . . . . . . . . . . . . . . . . . . . . Time 97 | . . . . . . . . . 97 . . . . . . . . . . . . . . . . . . . . . . . . . Total Part Build Rating 12 | . . . . . . . . . 12 . . . . . . . . . . . . . . . . . . . . . . . . . Parts Repaired . | . . . . . . . . . . . . . . . . . . . . . . . . . . . . . . . . . . . Time . | . . . . . . . . . . . . . . . . . . . . . . . . . . . . . . . . . . . Parts Recycled . | . . . . . . . . . . . . . . . . . . . . . . . . . . . . . . . . . . . Recycled Matter . | . . . . . . . . . . . . . . . . . . . . . . . . . . . . . . . . . . . Retrieved Matter . | . . . . . . . . . . . . . . . . . . . . . . . . . . . . . . . . . . . Retrieved Components . | . . . . . . . . . . . . . . . . . . . . . . . . . . . . . . . . . . . Parts Scanalyzed 1 | . . . . . . . . . . . . . . 1 . . . . . . . . . . . . . . . . . . . . Part Schematics Acquired . | . . . . . . . . . . . . . . . . . . . . . . . . . . . . . . . . . . . Parts Damaged . | . . . . . . . . . . . . . . . . . . . . . . . . . . . . . . . . . . . Bothacking | -11 -10 -10 -9 -9 -9 -8 -8 -8 -7 -7 -7 -7 -6 -6 -6 -6 -6 -6 -5 -5 -5 -5 -5 -4 -4 -4 -4 -4 -4 -3 -3 -2 -1 -1 ------------ Run | Scr Mat Min Mat Min Exi Min Mat Sto Fac Low Low Dat Pro Fac Low Low Zio Dee Pro Fac Upp Upp Zhi Pro Fac Ext Cet Arc Hub Res Tes Res Acc Com Used RIF Installer . | . . . . . . . . . . . . . . . . . . . . . . . . . . . . . . . . . . . Robots Hacked . | . . . . . . . . . . . . . . . . . . . . . . . . . . . . . . . . . . . Non-combat . | . . . . . . . . . . . . . . . . . . . . . . . . . . . . . . . . . . . Combat . | . . . . . . . . . . . . . . . . . . . . . . . . . . . . . . . . . . . Robot Hacks Applied . | . . . . . . . . . . . . . . . . . . . . . . . . . . . . . . . . . . . Relay Couplers Released . | . . . . . . . . . . . . . . . . . . . . . . . . . . . . . . . . . . . Fabnet Peak Effective % . | . . . . . . . . . . . . . . . . . . . . . . . . . . . . . . . . . . . Robots Rewired . | . . . . . . . . . . . . . . . . . . . . . . . . . . . . . . . . . . . Allies Hacked 2 | . . . . . . . . . . . . . . . . . . . . . . . . . . 2 . . . . . . . . Hacks Repelled . | . . . . . . . . . . . . . . . . . . . . . . . . . . . . . . . . . . . Allies | -11 -10 -10 -9 -9 -9 -8 -8 -8 -7 -7 -7 -7 -6 -6 -6 -6 -6 -6 -5 -5 -5 -5 -5 -4 -4 -4 -4 -4 -4 -3 -3 -2 -1 -1 -------- Run | Scr Mat Min Mat Min Exi Min Mat Sto Fac Low Low Dat Pro Fac Low Low Zio Dee Pro Fac Upp Upp Zhi Pro Fac Ext Cet Arc Hub Res Tes Res Acc Com Total Allies 23 | . . . . . . . . 2 1 . . . 1 . . . . . . . . . . . . 19 . . . . . . . . Largest Group 15 | . . . . . . . . 2 1 . . . 1 . . . . . . . . . . . . 15 15 . . . . . . . Highest-Rated Group 732 | . . . . . . . . 62 10 . . . 96 . . . . . . . . . . . . 732 732 . . . . . . . Highest-Rated Ally 159 | . . . . . . . . 31 10 . . . 96 . . . . . . . . . . . . 159 146 . . . . . . . Total Orders . | . . . . . . . . . . . . . . . . . . . . . . . . . . . . . . . . . . . Ally Attacks 194 | . . . . . . . . 7 . . . . . . . . . . . . . . . . . 65 122 . . . . . . . Total Damage 4799 | . . . . . . . . 124 . . . . . . . . . . . . . . . . . 1949 2726 . . . . . . . Kills 25 | . . . . . . . . 1 . . . . . . . . . . . . . . . . . 8 16 . . . . . . . Allies Corrupted . | . . . . . . . . . . . . . . . . . . . . . . . . . . . . . . . . . . . Allies Melted 1 | . . . . . . . . . . . . . . . . . . . . . . . . . . 1 . . . . . . . . Intel | -11 -10 -10 -9 -9 -9 -8 -8 -8 -7 -7 -7 -7 -6 -6 -6 -6 -6 -6 -5 -5 -5 -5 -5 -4 -4 -4 -4 -4 -4 -3 -3 -2 -1 -1 ------- Run | Scr Mat Min Mat Min Exi Min Mat Sto Fac Low Low Dat Pro Fac Low Low Zio Dee Pro Fac Upp Upp Zhi Pro Fac Ext Cet Arc Hub Res Tes Res Acc Com Robot Analysis Total 2 | . 1 . . . . . . . 1 . . . . . . . . . . . . . . . . . . . . . . . . . Derelict Logs Recovered 9 | . . . . . . . . . . . 2 . . . 1 1 2 . 1 . . 1 . 1 . . . . . . . . . . Drone Launches . | . . . . . . . . . . . . . . . . . . . . . . . . . . . . . . . . . . . Drone Recoveries . | . . . . . . . . . . . . . . . . . . . . . . . . . . . . . . . . . . . Exploration | -11 -10 -10 -9 -9 -9 -8 -8 -8 -7 -7 -7 -7 -6 -6 -6 -6 -6 -6 -5 -5 -5 -5 -5 -4 -4 -4 -4 -4 -4 -3 -3 -2 -1 -1 ------------- Run | Scr Mat Min Mat Min Exi Min Mat Sto Fac Low Low Dat Pro Fac Low Low Zio Dee Pro Fac Upp Upp Zhi Pro Fac Ext Cet Arc Hub Res Tes Res Acc Com Turns Passed 16728 | 129 260 221 467 536 36 144 145 259 485 60 15 20 124 195 100 281 223 592 1449 312 453 681 251 560 259 1451 712 95 678 986 1347 951 539 1712 Spaces Moved 15583 | 118 423 470 576 435 132 345 351 561 919 186 64 84 444 529 423 359 821 1500 526 207 318 475 138 390 160 905 395 46 351 574 650 589 318 801 Core 253 | 118 135 . . . . . . . . . . . . . . . . . . . . . . . . . . . . . . . . . Treads . | . . . . . . . . . . . . . . . . . . . . . . . . . . . . . . . . . . . Legs 6672 | . . . . . . . . . . . . . . . . . . . 355 207 318 475 138 390 160 905 395 46 351 574 650 589 318 801 Wheels . | . . . . . . . . . . . . . . . . . . . . . . . . . . . . . . . . . . . Hover . | . . . . . . . . . . . . . . . . . . . . . . . . . . . . . . . . . . . Flight 8658 | . 288 470 576 435 132 345 351 561 919 186 64 84 444 529 423 359 821 1500 171 . . . . . . . . . . . . . . . Fastest Speed 20 | 50 37 34 34 27 27 27 27 23 23 23 23 23 23 20 20 20 20 20 20 130 130 130 130 130 130 130 130 130 130 128 128 128 128 128 Average Speed 70 | 87 43 35 37 31 27 27 27 23 23 23 23 23 23 22 20 20 20 20 98 130 130 130 130 130 130 130 130 130 130 128 128 128 128 128 Slowest Speed 184 | 100 100 37 114 34 27 27 27 27 26 23 23 23 106 23 20 20 20 20 180 130 130 130 130 130 130 130 130 130 130 130 130 128 128 184 Overloaded Moves . | . . . . . . . . . . . . . . . . . . . . . . . . . . . . . . . . . . . Propulsion Burnouts . | . . . . . . . . . . . . . . . . . . . . . . . . . . . . . . . . . . . Robots Hopped 30 | . . 8 . . . . 2 20 . . . . . . . . . . . . . . . . . . . . . . . . . . Cave-ins Triggered 2 | . . . . . . . . . . . . . . . . . . . . . . . . . . . . . . . 1 . . 1 Exploration Rate (%) 53 | 3 76 92 50 95 55 82 36 87 32 47 20 72 61 17 61 70 80 87 65 6 58 64 58 62 7 93 72 84 45 20 69 14 14 27 Regions Visited 34 Branch Regions 24 Pre-discovered Areas 7 | . . . . 1 . . . . . . . 1 . . . 1 3 . 1 . . . . . . . . . . . . . . . Known Exits Taken 34 | 1 1 1 1 1 1 1 1 1 1 1 1 1 1 1 1 1 1 1 1 1 1 1 1 1 1 1 1 1 1 1 1 1 1 . Unknown Exits Taken . | . . . . . . . . . . . . . . . . . . . . . . . . . . . . . . . . . . . Scrap Searched 18 | . . . . 1 . . . . . 1 1 . 1 . 4 3 4 . 1 . 1 . . 1 . . . . . . . . . . Spaces Dug 98 | . . . 1 . . . 4 3 5 . . . . 4 . 1 . 1 8 . . 9 . 3 27 . . . 6 3 10 2 3 8 Terrain Destroyed 759 | . 12 3 1 . . . 4 4 5 . . . . 4 . 1 . 1 26 36 2 9 . 10 32 13 9 2 364 27 48 17 20 109 Melee 21 | . . . 1 . . . 4 3 5 . . . . 4 . 1 . 1 2 . . . . . . . . . . . . . . . Projectile 300 | . . . . . . . . 1 . . . . . . . . . . 24 5 2 9 . 10 10 13 9 2 42 27 48 17 20 61 AOE 438 | . 12 3 . . . . . . . . . . . . . . . . . 31 . . . . 22 . . . 322 . . . . 48 Terrain Rammed 1 | . . . 1 . . . . . . . . . . . . . . . . . . . . . . . . . . . . . . . Walls Destroyed . | . . . . . . . . . . . . . . . . . . . . . . . . . . . . . . . . . . . Machines Disabled . | . . . . . . . . . . . . . . . . . . . . . . . . . . . . . . . . . . . Actions | -11 -10 -10 -9 -9 -9 -8 -8 -8 -7 -7 -7 -7 -6 -6 -6 -6 -6 -6 -5 -5 -5 -5 -5 -4 -4 -4 -4 -4 -4 -3 -3 -2 -1 -1 --------- Run | Scr Mat Min Mat Min Exi Min Mat Sto Fac Low Low Dat Pro Fac Low Low Zio Dee Pro Fac Upp Upp Zhi Pro Fac Ext Cet Arc Hub Res Tes Res Acc Com Total 19685 | 133 454 494 734 821 131 382 373 619 1100 197 63 83 458 575 438 550 861 1687 1408 233 344 531 209 419 196 1111 526 56 455 737 985 723 358 1241 Wait 2444 | . . 22 55 370 . 20 . 19 89 . . . 5 . 4 180 12 54 778 . 11 53 52 . 18 127 77 . 10 65 156 75 . 192 Move 15495 | 117 422 453 575 434 131 344 346 527 918 185 63 83 443 528 422 358 820 1499 525 206 317 474 137 389 159 904 394 45 350 573 648 588 317 801 Hop 23 | . . 8 . . . . 2 13 . . . . . . . . . . . . . . . . . . . . . . . . . . Pick Up 52 | 2 1 . 4 1 . 2 1 . 3 2 . . . . . . 2 4 4 1 . . 4 . . 6 2 . 3 5 2 . . 3 Fast Attach 126 | 4 7 1 9 2 . 1 2 10 19 . . . 2 7 4 1 6 10 6 2 1 . 2 . . 2 3 . 1 7 11 3 1 2 Attach 16 | . 2 . . . . . . . . . . . . . . 1 1 . 2 1 . . . . 1 . . . . 6 . . . 2 Detach 53 | 1 . . 2 . . . . . . . . . . 1 2 1 2 1 8 . . . 3 . 7 3 2 . . 12 2 1 . 5 Swap 36 | . . . 2 . . . . . 1 . . . . . . . 2 2 5 . . . 6 1 . 4 1 . 3 . . 3 . 6 Drop 144 | . 1 . 13 1 . 2 2 8 14 2 . . 2 5 3 1 7 14 18 . 1 . 5 1 . 9 4 . 3 9 12 2 1 4 Fire 616 | 9 20 10 36 . . . . 6 . . . . . . . . . . 23 7 6 3 . 11 8 33 31 11 55 41 82 25 38 161 Melee 228 | . . . 17 8 . 9 17 23 42 4 . . 4 16 . 8 9 67 4 . . . . . . . . . . . . . . . Ram 1 | . . . 1 . . . . . . . . . . . . . . . . . . . . . . . . . . . . . . . Kick 6 | . . . . . . . . . . . . . . . . . . . . . . 1 . . . 1 . . . 1 2 . 1 . Crush . | . . . . . . . . . . . . . . . . . . . . . . . . . . . . . . . . . . . Escape Stasis 21 | . . . . . . . . . . . . . . 18 . . . . . . . . . . . 1 . . . . 2 . . . Rewire . | . . . . . . . . . . . . . . . . . . . . . . . . . . . . . . . . . . . Trap . | . . . . . . . . . . . . . . . . . . . . . . . . . . . . . . . . . . . Miscellaneous 424 | . 1 . 20 5 . 4 3 13 14 4 . . 2 . 3 . . 36 35 16 8 . . 17 3 21 12 . 30 18 68 26 . 65 Route ------- -11/Scrapyard -10/Materials (discovered 3 exits: *Mat x2 / *Min) -10/Mines (discovered 2 exits: *Mat x2) -9/Materials (discovered 2 exits: *Mat / *Min) -9/Mines (discovered 3 exits: *Mat x2 / *Exi) -9/Exiles (discovered 2 exits: *Min x2) -8/Mines (discovered 2 exits: *Mat x2) -8/Materials (discovered 3 exits: *Fac x2 / *Sto) -8/Storage -7/Factory (discovered 3 exits: *Fac / *Low x2) -7/Lower Caves -7/Lower Caves -7/Data Miner -6/Proximity Caves -6/Factory (discovered 3 exits: *Fac / *Low x2) -6/Lower Caves -6/Lower Caves (discovered 2 exits: *Fac / *Zio) -6/Zion (discovered 2 exits: *Dee / *Pro) -6/Deep Caves -5/Proximity Caves -5/Factory -5/Upper Caves -5/Upper Caves (discovered 2 exits: Fac / *Zhi) -5/Zhirov -4/Proximity Caves -4/Factory -4/Extension (discovered 3 exits: *Res x2 / *Cet) -4/Cetus (discovered 2 exits: *Res / *Arc) -4/Archives (discovered 3 exits: *Res / *Hub x2) -4/Hub_04(d) (discovered 2 exits: *Res x2) -3/Research -3/Testing -2/Research (discovered 5 exits: *Acc x3 / Qua x2) -1/Access -1/Command (discovered 2 exits: Sur x2) History --------- Turn | Location | Event 1 | -11/Scrapyard | Upgraded with Power slot (x1) 1 | -11/Scrapyard | Upgraded with Propulsion slot (x2) 1 | -11/Scrapyard | Upgraded with Utility slot (x2) 1 | -11/Scrapyard | Upgraded with Weapon slot (x1) 6 | -11/Scrapyard | Identified exit to Materials 6 | -11/Scrapyard | Discovered exit to Materials (range 16) 130 | -11/Scrapyard | Entered Materials 219 | -10/Materials | Identified exit to Mines 219 | -10/Materials | Discovered exit to Mines (range 16) 271 | -10/Materials | Identified exit to Materials 271 | -10/Materials | Discovered exit to Materials (range 14) 338 | -10/Materials | Discovered exit to Materials (range 10) 390 | -10/Materials | Entered Mines 433 | -10/Mines | Reached level 2 448 | -10/Mines | Build established: Hacker-Scout 473 | -10/Mines | Discovered exit to Materials (range 7) 554 | -10/Mines | Discovered exit to Materials (range 17) 581 | -10/Mines | Found a damaged Exp. Sensor Array with a note attached 611 | -10/Mines | Entered Materials 613 | -9/Materials | Reached level 3 628 | -9/Materials | Upgraded with Utility slot (x1) 705 | -9/Materials | Reached level 4 744 | -9/Materials | Upgraded with Propulsion slot (x1) 910 | -9/Materials | Identified exit to Materials 910 | -9/Materials | Discovered exit to Materials (range 17) 1012 | -9/Materials | Reached level 5 1019 | -9/Materials | Upgraded with Propulsion slot (x1) 1026 | -9/Materials | Identified exit to Mines 1078 | -9/Materials | Entered Mines 1151 | -9/Mines | Identified exit to Exiles 1151 | -9/Mines | Discovered exit to Exiles (range 14) 1181 | -9/Mines | Build established: Scavenger-Ninja 1195 | -9/Mines | Found the Drone Emporium 1384 | -9/Mines | Discovered exit to Materials (range 5) 1404 | -9/Mines | A weapon hastily lodged in a ceiling crevice suddenly fell to the ground 1413 | -9/Mines | Discovered exit to Materials (range 8) 1427 | -9/Mines | Learned location of Storage (-8) 1613 | -9/Mines | Deemed a non-threat by the Exiles lab entrance 1614 | -9/Mines | Entered Exiles 1618 | -9/Exiles | Identified exit to Mines 1618 | -9/Exiles | Discovered exit to Mines (range 16) 1621 | -9/Exiles | Met 8R-AWN 1626 | -9/Exiles | Met EX-HEX 1635 | -9/Exiles | Met EX-DEC 1648 | -9/Exiles | Discovered exit to Mines (range 10) 1650 | -9/Exiles | Entered Mines 1652 | -8/Mines | Reached level 6 1716 | -8/Mines | Discovered exit to Materials (range 11) 1775 | -8/Mines | Discovered exit to Materials (range 5) 1794 | -8/Mines | Entered Materials 1796 | -8/Materials | Reached level 7 1830 | -8/Materials | Reached level 8 1840 | -8/Materials | Identified exit to Factory 1840 | -8/Materials | Discovered exit to Factory (range 20) 1843 | -8/Materials | Upgraded with Utility slot (x1) 1883 | -8/Materials | Identified exit to Storage 1933 | -8/Materials | Discovered exit to Factory (range 14) 1939 | -8/Materials | Entered Storage 2010 | -8/Storage | Reached level 9 2063 | -8/Storage | Discovered exit to Factory (range 20) 2142 | -8/Storage | Met a pair of Derelict thieves 2198 | -8/Storage | Entered Factory 2200 | -7/Factory | Reached level 10 2210 | -7/Factory | Upgraded with Weapon slot (x1) 2218 | -7/Factory | Upgraded with Utility slot (x1) 2307 | -7/Factory | Build established: Hacker-Ninja 2323 | -7/Factory | Reached level 11 2348 | -7/Factory | Garrison activated, responded to threat 2358 | -7/Factory | Destroyed 7 combat bots 2410 | -7/Factory | Upgraded with Utility slot (x1) 2452 | -7/Factory | Identified exit to Factory 2452 | -7/Factory | Discovered exit to Factory (range 16) 2515 | -7/Factory | Identified exit to Lower Caves 2541 | -7/Factory | Fabricated Katana? 2651 | -7/Factory | Fabricated Katana (x2) 2683 | -7/Factory | Entered Lower Caves 2685 | -7/Lower Caves | Reached level 12 2707 | -7/Lower Caves | Encountered a Warlord checkpoint 2717 | -7/Lower Caves | Identified exit to Lower Caves 2717 | -7/Lower Caves | Discovered exit to Lower Caves (range 4) 2719 | -7/Lower Caves | Attacked by a delusional Derelict stockpiling parts 2743 | -7/Lower Caves | Entered another Lower Caves area 2751 | -7/Lower Caves | Identified exit to Data Miner 2751 | -7/Lower Caves | Discovered exit to Data Miner (range 14) 2752 | -7/Lower Caves | Learned Factory non-interactive machine intel 2755 | -7/Lower Caves | Learned Factory terminal intel 2758 | -7/Lower Caves | Entered Data Miner 2758 | -7/Data Miner | Identified exit to Proximity Caves 2758 | -7/Data Miner | Discovered exit to Proximity Caves (range 7) 2762 | -7/Data Miner | Met Data Miner 2767 | -7/Data Miner | Learned location of Section 7 (-2) 2767 | -7/Data Miner | Acquired the access code to Warlord's prototype stash 2771 | -7/Data Miner | Received God Mode back door access code from Data Miner 2778 | -7/Data Miner | Entered Proximity Caves 2780 | -6/Proximity Caves | Reached level 13 2846 | -6/Proximity Caves | Escorted by Enhanced Grunt 2884 | -6/Proximity Caves | Attracted the attention of an 0b10 checkpoint 2895 | -6/Proximity Caves | Discovered exit to Factory (range 8) 2902 | -6/Proximity Caves | Entered Factory 2903 | -6/Factory | Loaded intel: 222 non-interactive machine locations 2904 | -6/Factory | Loaded intel: 26 terminal locations 2904 | -6/Factory | Reached level 14 2904 | -6/Factory | Upgraded with Propulsion slot (x1) 2932 | -6/Factory | Reached level 15 2960 | -6/Factory | Identified exit to Lower Caves 3036 | -6/Factory | Identified exit to Factory 3036 | -6/Factory | Discovered exit to Factory (range 6) 3097 | -6/Factory | Entered Lower Caves 3110 | -6/Lower Caves | Learned Factory security intel 3135 | -6/Lower Caves | Encountered a Warlord checkpoint 3186 | -6/Lower Caves | Identified exit to Lower Caves 3186 | -6/Lower Caves | Discovered exit to Lower Caves (range 8) 3197 | -6/Lower Caves | Entered another Lower Caves area 3204 | -6/Lower Caves | Discovered exit to Factory (range 7) 3210 | -6/Lower Caves | Attracted the attention of an 0b10 outpost 3227 | -6/Lower Caves | Learned location of Zion (-6) 3416 | -6/Lower Caves | Spotted B-75 Beast 3430 | -6/Lower Caves | Destroyed B-75 Beast 3461 | -6/Lower Caves | Identified exit to Zion 3461 | -6/Lower Caves | Discovered exit to Zion (range 9) 3471 | -6/Lower Caves | Found Alien Artifact 3471 | -6/Lower Caves | Identified Core Expander 3471 | -6/Lower Caves | Installed Core Expander, added new Power slot 3478 | -6/Lower Caves | Entered Zion 3480 | -6/Zion | Reached level 16 3487 | -6/Zion | Given A8's code to call for help 3496 | -6/Zion | Received a visual enhancement algorithm 3498 | -6/Zion | Learned 8 Factory zone layouts 3498 | -6/Zion | Identified exit to Proximity Caves 3498 | -6/Zion | Discovered exit to Proximity Caves (range 10) 3517 | -6/Zion | Learned location of Armory (-4) 3553 | -6/Zion | Given the Hacking Drone Bay 3555 | -6/Zion | Found Prototype Device 3555 | -6/Zion | Identified Hacking Drone Bay 3564 | -6/Zion | Found Prototype Device 3564 | -6/Zion | Identified Bomb Factory No. 2 3587 | -6/Zion | Learned Factory stockpile data 3672 | -6/Zion | Identified exit to Deep Caves 3672 | -6/Zion | Discovered exit to Deep Caves (range 10) 3695 | -6/Zion | Saw the warning signs outside the Deep Caves entrance 3701 | -6/Zion | Entered Deep Caves 3753 | -6/Deep Caves | Attacked by Z-Imprinter 3780 | -6/Deep Caves | Reached level 17 3780 | -6/Deep Caves | Destroyed Z-Imprinter 3828 | -6/Deep Caves | Found Prototype Protection 3828 | -6/Deep Caves | Identified Zio. Weapon Casing 3890 | -6/Deep Caves | Z-Facility disabled 4065 | -6/Deep Caves | Identified exit to Proximity Caves 4065 | -6/Deep Caves | Discovered exit to Proximity Caves (range 13) 4122 | -6/Deep Caves | Spotted as-39048 4189 | -6/Deep Caves | Core integrity fell below 50% 4215 | -6/Deep Caves | Core integrity fell below 20% 4272 | -6/Deep Caves | Triggered Deep Caves wall 4272 | -6/Deep Caves | Exposed GOLEM chamber 4283 | -6/Deep Caves | Found GOLEM Unit 4285 | -6/Deep Caves | Spotted AS-16146 4293 | -6/Deep Caves | Entered Proximity Caves 4295 | -5/Proximity Caves | Reached level 18 4647 | -5/Proximity Caves | Build established: Generator-Assassin 5232 | -5/Proximity Caves | Build established: Generator-Golem 5620 | -5/Proximity Caves | Discovered exit to Factory (range 11) 5626 | -5/Proximity Caves | Attracted the attention of an 0b10 checkpoint 5694 | -5/Proximity Caves | Reached level 19 5742 | -5/Proximity Caves | Entered Factory 5744 | -5/Factory | Reached level 20 5775 | -5/Factory | Build established: Scavenger-Golem 5790 | -5/Factory | Upgraded with Utility slot (x1) 5815 | -5/Factory | Upgraded with Power slot (x1) 5917 | -5/Factory | Found Prototype Launcher 5957 | -5/Factory | Spotted B-75 Beast 5971 | -5/Factory | Destroyed B-75 Beast 6016 | -5/Factory | Identified exit to Upper Caves 6016 | -5/Factory | Discovered exit to Upper Caves (range 18) 6054 | -5/Factory | Entered Upper Caves 6097 | -5/Upper Caves | Build established: Generator-Skirmisher 6489 | -5/Upper Caves | Encountered a Warlord checkpoint 6489 | -5/Upper Caves | Identified exit to Upper Caves 6489 | -5/Upper Caves | Discovered exit to Upper Caves (range 15) 6507 | -5/Upper Caves | Entered another Upper Caves area 6787 | -5/Upper Caves | Identified exit to Factory 7172 | -5/Upper Caves | Identified exit to Zhirov 7172 | -5/Upper Caves | Discovered exit to Zhirov (range 16) 7188 | -5/Upper Caves | Entered Zhirov 7188 | -5/Zhirov | Identified exit to Proximity Caves 7188 | -5/Zhirov | Discovered exit to Proximity Caves (range 3) 7190 | -5/Zhirov | Reached level 21 7212 | -5/Zhirov | Met Zhirov 7246 | -5/Zhirov | Found Alien Artifact 7247 | -5/Zhirov | Identified Integrated Dissipator 7247 | -5/Zhirov | Installed Integrated Dissipator, increased core heat dissipation (+20) 7264 | -5/Zhirov | Found Alien Artifact 7268 | -5/Zhirov | Identified Scatter Rocket Array 7439 | -5/Zhirov | Entered Proximity Caves 7587 | -4/Proximity Caves | Reached level 22 7790 | -4/Proximity Caves | Learned Research terminal intel 7930 | -4/Proximity Caves | Discovered exit to Factory (range 15) 7999 | -4/Proximity Caves | Entered Factory 8001 | -4/Factory | Reached level 23 8005 | -4/Factory | Upgraded with Utility slot (x1) 8155 | -4/Factory | Identified exit to Extension 8155 | -4/Factory | Discovered exit to Extension (range 15) 8258 | -4/Factory | Entered Extension 8265 | -4/Extension | Disrupted transfer network 8285 | -4/Extension | Rescued a captive Derelict 8290 | -4/Extension | Rescued a captive Derelict 8321 | -4/Extension | Rescued A7 8324 | -4/Extension | Reached level 24 8475 | -4/Extension | Rescued a captive Derelict 8476 | -4/Extension | Rescued a captive Derelict 8500 | -4/Extension | Rescued a captive Derelict 8502 | -4/Extension | Rescued a captive Derelict 8523 | -4/Extension | Rescued a captive Derelict 8552 | -4/Extension | Rescued a captive Derelict 8553 | -4/Extension | Rescued a captive Derelict 8568 | -4/Extension | Spotted B-86 Titan 8583 | -4/Extension | Spotted B-86 Titan 8612 | -4/Extension | Allies destroyed B-86 Titan 8615 | -4/Extension | Allies destroyed B-86 Titan 8620 | -4/Extension | Identified exit to Research 8620 | -4/Extension | Discovered exit to Research (range 11) 8676 | -4/Extension | Rescued a captive Derelict 8677 | -4/Extension | Rescued a captive Derelict 8710 | -4/Extension | Rescued a captive Derelict 8711 | -4/Extension | Rescued a captive Derelict 8725 | -4/Extension | Rescued a captive Derelict 8841 | -4/Extension | Rescued a captive Derelict 8855 | -4/Extension | Rescued a captive Derelict 8856 | -4/Extension | Rescued a captive Derelict 8912 | -4/Extension | Rescued a captive Derelict 8950 | -4/Extension | Identified exit to Cetus 8950 | -4/Extension | Discovered exit to Cetus (range 13) 8958 | -4/Extension | Discovered exit to Research (range 10) 9709 | -4/Extension | Entered Cetus 9709 | -4/Cetus | Accompanied by 15 allies (A7) 9711 | -4/Cetus | Reached level 25 9711 | -4/Cetus | Spotted Cetus Guard 9712 | -4/Cetus | Spotted Cetus Guard 9714 | -4/Cetus | Acquired a Cetus Manufacturing Module code from A7 9715 | -4/Cetus | Upgraded with Utility slot (x1) 9718 | -4/Cetus | Spotted Cetus Guard 9719 | -4/Cetus | Spotted Cetus Guard 9725 | -4/Cetus | Allies destroyed Cetus Guard 9743 | -4/Cetus | Allies destroyed Cetus Guard 9752 | -4/Cetus | Cetus Manufacturing Module disabled 9755 | -4/Cetus | Allies destroyed Cetus Guard 9894 | -4/Cetus | Failed to start Cetus Manufacturing Module 9917 | -4/Cetus | Identified exit to Archives 9917 | -4/Cetus | Discovered exit to Archives (range 27) 9918 | -4/Cetus | Destroyed A7 9922 | -4/Cetus | Extracted ID and sensor layout for unrecognized location from A7's data core 10042 | -4/Cetus | Spotted Cetus Guard 10042 | -4/Cetus | Spotted Cetus Guard 10042 | -4/Cetus | Spotted Cetus Guard 10042 | -4/Cetus | Spotted Cetus Guard 10047 | -4/Cetus | Discovered exit to Research (range 26) 10057 | -4/Cetus | Destroyed Cetus Guard 10083 | -4/Cetus | Destroyed Cetus Guard 10098 | -4/Cetus | Destroyed Cetus Guard 10102 | -4/Cetus | Destroyed Cetus Guard 10152 | -4/Cetus | Met Revision 17 10289 | -4/Cetus | Reached level 26 10421 | -4/Cetus | Entered Archives 10461 | -4/Archives | Identified exit to Hub_04(d) 10461 | -4/Archives | Discovered exit to Hub_04(d) (range 25) 10468 | -4/Archives | Discovered exit to Research (range 18) 10483 | -4/Archives | Discovered exit to Hub_04(d) (range 19) 10492 | -4/Archives | Unable to access archive contents 10516 | -4/Archives | Entered Hub_04(d) 10741 | -4/Hub_04(d) | Network Hub disabled 10833 | -4/Hub_04(d) | Disrupted transfer network 11012 | -4/Hub_04(d) | Discovered exit to Research (range 20) 11055 | -4/Hub_04(d) | Discovered exit to Research (range 15) 11086 | -4/Hub_04(d) | Spotted Lightning 11088 | -4/Hub_04(d) | Spotted Lightning 11092 | -4/Hub_04(d) | Network Hub disabled 11092 | -4/Hub_04(d) | Spotted Lightning 11106 | -4/Hub_04(d) | Destroyed Lightning 11112 | -4/Hub_04(d) | Destroyed Lightning 11116 | -4/Hub_04(d) | Destroyed Lightning 11143 | -4/Hub_04(d) | Found Prototype Device 11149 | -4/Hub_04(d) | Identified Exp. EM Disruption Field 11167 | -4/Hub_04(d) | Found Prototype Device 11168 | -4/Hub_04(d) | Identified Exp. Phase Shifter 11171 | -4/Hub_04(d) | Found Exp. EM Disruption Field 11194 | -4/Hub_04(d) | Entered Research 11195 | -3/Research | Loaded intel: 20 terminal locations 11196 | -3/Research | Reached level 27 11196 | -3/Research | Upgraded with Utility slot (x1) 11517 | -3/Research | Reached level 28 11681 | -3/Research | Identified exit to Testing 11681 | -3/Research | Discovered exit to Testing (range 20) 11865 | -3/Research | Found Antimissile System 12038 | -3/Research | Found Adv. Powered Armor 12180 | -3/Research | Entered Testing 12334 | -3/Testing | Spotted Striker 12334 | -3/Testing | Spotted Striker 12357 | -3/Testing | Destroyed Striker 12450 | -3/Testing | Destroyed Striker 12480 | -3/Testing | Spotted Alpha 7 12508 | -3/Testing | Destroyed Alpha 7 12553 | -3/Testing | Stole the SGEMP Prototype 12567 | -3/Testing | Build established: Generator-Tank 12842 | -3/Testing | Identified exit to Research 12842 | -3/Testing | Discovered exit to Research (range 9) 12948 | -3/Testing | Reached level 29 12954 | -3/Testing | Upgraded with Power slot (x1) 12983 | -3/Testing | Found Prototype Device 12983 | -3/Testing | Identified Exp. Focal Shield 13035 | -3/Testing | Spotted PG-MKGCFNG8Y7 13051 | -3/Testing | Crushed by falling debris 13066 | -3/Testing | Destroyed PG-MKGCFNG8Y7 13475 | -3/Testing | Scanned by Researcher 13527 | -3/Testing | Entered Research 13529 | -2/Research | Reached level 30 13533 | -2/Research | Upgraded with Weapon slot (x1) 13635 | -2/Research | Identified exit to Quarantine 14073 | -2/Research | Identified exit to Access 14478 | -2/Research | Entered Access 14480 | -1/Access | Reached level 31 14514 | -1/Access | Spotted B-99 Colossus 14542 | -1/Access | Reached level 32 14611 | -1/Access | Identified exit to Command 14817 | -1/Access | Destroyed 8 combat bots 14847 | -1/Access | Destroyed B-99 Colossus 15017 | -1/Access | Entered Command 15019 | -1/Command | Reached level 33 15019 | -1/Command | Reached level 34 15196 | -1/Command | Spotted B-99 Colossus 15217 | -1/Command | Destroyed B-99 Colossus 15304 | -1/Command | Phase Generator disabled 15357 | -1/Command | Crushed by falling debris 15529 | -1/Command | Identified exit to Surface 15529 | -1/Command | Discovered exit to Surface (range 17) 15661 | -1/Command | Disengaged cave seal 15726 | -1/Command | Spotted M Guard 15726 | -1/Command | Spotted M Guard 15726 | -1/Command | Spotted Combat Programmer 15728 | -1/Command | Spotted Combat Programmer 15742 | -1/Command | Destroyed Combat Programmer 15749 | -1/Command | Destroyed Combat Programmer 15829 | -1/Command | Destroyed M Guard 15839 | -1/Command | Core integrity fell below 50% 15898 | -1/Command | Destroyed M Guard 15898 | -1/Command | All MAIN.C guards destroyed 15898 | -1/Command | Reached level 35 16581 | -1/Command | Met MAIN.C 16595 | -1/Command | 0b10 Conduit disabled 16656 | -1/Command | Discovered exit to Surface (range 19) 16658 | -1/Command | Destroyed MAIN.C Shell 16661 | -1/Command | MAIN.C activated Command garrisons 16689 | -1/Command | Core integrity fell below 20% 16729 | -1/Command | Destroyed by MAIN.C with Omega Cannon Last Messages --------------- and now. I strongly suggest you join us, if not because we could do great things together, then because you don't stand a chance against the true might of 0b10. [Decision: Attack] 16661_ MAIN.C: "So be it!" 16666_ System corrupted: Asb. Focal Cannon failed to cycle. 16668_ System corrupted: Matter fused (-9). 16684_ System corrupted: Matter fused (-7). 16699_ Upgraded: Core Integrity (+100) 16707_ System corrupted: Matter fused (-9). 16711_ Acquired 60 matter. 16714_ C-30 ARC bursts open, deploying its payload. 16714_ S-43 Plague unfolds itself. 16720_ Destroyed Xenon Bombardment Thruster. 16720_ Destroyed Lgt. Antimatter Reactor. 16720_ S-43 Plague destroyed. 16723_ C-30 ARC bursts open, deploying its payload. 16723_ G-73 Enforcer unfolds itself. 16724_ Dropped SGEMP Prototype. Map ----- +----------------------------------------------------+ | ????????????????????????????????####?######???##?# | | ????????????????????????????????##??#######??###?? | | ??????????????????????????????#?#?##?########?###? | | ?????????????????????????#????##?####??###?#??##?? | | ???????????????????###??##########?########?###?## | | ???????????????????#####################??#####?## | | ???????????????######################?############ | | ?????????????##################################### | | ????????????### #####""""""" """" ##?# | | ???????????#### #####"" "" #### | | ??????????? #####""""" "" #### | | ????????? #####""""""""""" / | | ?????????###### #####" " """ / | | ?????????####### ######"" """""" " | | ????????######## #####"" """""" #### | | ???????? # ##### " """""" #### | | ???????# # ##### " ""=![ #### | | ?????? + # ##### " "!!%! ##?# | | ?????? # # #####""""" """%=!] #### | | ?????? # # #####"" = gg #### | | ?????? ######### ##### Ms s #### | | ?????? ###### ## ##### g ##?# | | ?????? #### ## ##### ##?# | | ????? < #### ## """ % " #### | | ????? #### ## """ " #### | | ?????######## ## """@& ##?? | | ??????############+#####%% " ##?# | | ??????#### # ##### """"""""#### | | ??????#### # ##### " " " ###? | | ??????#### # ############################## | | ?????? # # ############################## | | ?????? # # ###########################??? | | ??????? + # ############################?# | | ??????? # # ############################## | | ???????? # ############################?##### | | ???????? # ################################## | | ?????????# ###############################?#? | | ?????????# ##############################??## | | ?????????? ###########################?#?#??? | | ??????????? ##########################?####??? | | ????????????? #######################?##?##????? | | ??????????????##########################?#???????? | | ????????????????####################??#??????????? | | ?????????????????#?###?###########???????????????? | | ?????????????????????#?###???###?????????????????? | | ?????????????????????????#???????????????????????? | | ?????????????????????????????????????????????????? | | ?????????????????????????????????????????????????? | | ?????????????????????????????????????????????????? | | ?????????????????????????????????????????????????? | +----------------------------------------------------+ Best States ------------- Heat Dissipation 144 Energy Generation 138 Energy Capacity 2100 Matter Stores 300 Matter Capacity 300 Sight Range 27 Robot Scan Range 22 Terrain Scan Range 20 Terrain Scan Density 710 ECM Strength 2 Jamming Range 16 Armor Coverage 500 Resistance: KI 65 Resistance: TH 50 Resistance: EX 55 Resistance: EM 100 Resistance: I 50 Resistance: S 50 Resistance: P 50 Weapon Cycling 25 Phase Shifting 20 Evasion (%) 85 Target Analysis 5 Energy Filtering 30 Particle Charging 25 Offensive Hacking 20 Item Schematics ----------------- Hvy. Hammer | -9/Materials | Hacked Katana | -8/Storage | Hacked Combat Drone Bay | -7/Data Miner | Free Lgt. Regenerative Plating | -7/Data Miner | Free Cld. Aerolev Unit | -7/Data Miner | Free Gravity Neutralizer | -7/Data Miner | Free Force Rifle | -7/Data Miner | Free Gyrokinetic Inverter | -7/Data Miner | Free Adv. Hacking Suite | -7/Data Miner | Free Adv. Plasma Cannon | -7/Data Miner | Free Power Amplifier | -7/Data Miner | Free Nuclear Pulse Array | -7/Data Miner | Free Lgt. Antimatter Reactor | -7/Data Miner | Free Beamcaster | -6/Zion | Free Barrage Gun | -6/Zion | Free Bore Cannon | -6/Zion | Archive Imp. Weapon Cycler | -6/Zion | Archive Phase Cannon | -6/Zion | Archive Recoil Nullifier | -6/Zion | Archive Thermic Laser | -6/Zion | Archive Mass Driver | -6/Zion | Archive Lgt. Angular Momentum Engine | -6/Zion | Archive Imp. Force Field | -6/Zion | Archive Adv. Actuator Array | -6/Zion | Archive Lgt. Fission Core | -6/Zion | Archive Point Defense System | -6/Zion | Archive System Guard | -6/Zion | Archive Imp. Component Analysis Suite | -6/Zion | Archive Mak. Hover Unit | -6/Zion | Archive Wave Gun | -6/Zion | Archive Hvy. Mass Driver | -6/Zion | Archive Robot Schematics ------------------ S-27 Virus | -7/Data Miner | Free R-10 Processor | -7/Data Miner | Free E-15 Imp | -7/Data Miner | Free G-50 Soldier | -7/Data Miner | Free H-66 Slayer | -6/Zion | Archive A-15 Conveyor | -6/Zion | Archive Fabricated ------------ Katana | x2 | -7/Factory Katana | x2 | -7/Factory Alien Tech Used ----------------- Core Expander Integrated Dissipator Achievements -------------- Ambidextrous Challenges ------------ None RPGLIKE | -11 -10 -10 -9 -9 -9 -8 -8 -8 -7 -7 -7 -7 -6 -6 -6 -6 -6 -6 -5 -5 -5 -5 -5 -4 -4 -4 -4 -4 -4 -3 -3 -2 -1 -1 --------- Run | Scr Mat Min Mat Min Exi Min Mat Sto Fac Low Low Dat Pro Fac Low Low Zio Dee Pro Fac Upp Upp Zhi Pro Fac Ext Cet Arc Hub Res Tes Res Acc Com Levels Raised 34 | . . 1 3 . . 1 2 1 2 1 . . 1 2 . . 1 1 2 1 . . 1 1 1 1 2 . . 2 1 1 2 3 XP Earned 58385 | 6000 775 880 4710 750 200 1166 2184 1715 3672 500 500 650 1669 1830 500 750 500 1848 2300 1801 522 349 421 1450 1846 2490 1630 210 891 2020 1707 1879 3603 4467 XP Spent 56835 | 5870 100 1375 4350 . 170 1485 2750 . 4500 1700 . . 1050 1970 1300 210 1390 695 2450 3100 . . 900 900 2600 . 2900 . . 4500 1100 2000 2900 4570 Upgrades 113 | 17 1 5 9 . 1 5 3 . 3 8 . . 1 2 1 1 5 7 14 2 . . 1 2 1 . 1 . . 4 1 3 5 10 Power Slot 3 | 1 . . . . . . . . . . . . . . . . . . . 1 . . . . . . . . . . 1 . . . Propulsion Slot 5 | 2 . . 2 . . . . . . . . . . 1 . . . . . . . . . . . . . . . . . . . . Utility Slot 10 | 2 . . 1 . . . 1 . 2 . . . . . . . . . . 1 . . . . 1 . 1 . . 1 . . . . Weapon Slot 3 | 1 . . . . . . . . 1 . . . . . . . . . . . . . . . . . . . . . . 1 . . Core Integrity 20 | . . . . . . 2 . . . . . . . . . . . 6 10 . . . . . . . . . . . . . . 2 Heat Dissipation 14 | . . . 5 . . . . . . 6 . . . 1 . . 2 . . . . . . . . . . . . . . . . . Energy Generation 5 | . . . 1 . . . 2 . . . . . 1 . 1 . . . . . . . . . . . . . . . . . . . Energy Storage 4 | . . . . . . . . . . . . . . . . . . . 4 . . . . . . . . . . . . . . . Mass Support 3 | . 1 1 . . . . . . . . . . . . . . . . . . . . . . . . . . . . . . . 1 Inventory Capacity 5 | 3 . . . . . . . . . . . . . . . . . . . . . . . . . . . . . 1 . . . 1 Sight Range 5 | . . 2 . . . 2 . . . . . . . . . . . . . . . . 1 . . . . . . . . . . . Sensor Range 11 | 5 . 2 . . . 1 . . . . . . . . . . 1 1 . . . . . . . . . . . . . . 1 . Terrain Scan Density 7 | 3 . . . . 1 . . . . . . . . . . 1 2 . . . . . . . . . . . . . . . . . Ranged Accuracy 2 | . . . . . . . . . . . . . . . . . . . . . . . . 2 . . . . . . . . . . Melee Accuracy 2 | . . . . . . . . . . 2 . . . . . . . . . . . . . . . . . . . . . . . . KI Resistance % 3 | . . . . . . . . . . . . . . . . . . . . . . . . . . . . . . 1 . . . 2 TH Resistance % 3 | . . . . . . . . . . . . . . . . . . . . . . . . . . . . . . 1 . 2 . . EX Resistance % 4 | . . . . . . . . . . . . . . . . . . . . . . . . . . . . . . . . . . 4 TH Damage % 4 | . . . . . . . . . . . . . . . . . . . . . . . . . . . . . . . . . 4 . Protomatter Created 5147 | . 60 . 364 . . 40 52 54 163 . . . 22 . . . . 308 264 116 118 . . 132 120 456 228 95 319 218 834 189 251 744 Integrity Restored 8602 | . 4 . 311 76 . 70 51 265 235 50 . . 19 . 69 . . 723 792 348 166 . . 377 32 418 225 . 582 363 1470 554 . 1402 Core 6223 | . 4 . 224 49 . 59 38 168 120 28 . . 14 . 69 . . 538 792 348 126 . . 133 6 258 59 . 411 306 861 443 . 1169 Parts 2379 | . . . 87 27 . 11 13 97 115 22 . . 5 . . . . 185 . . 40 . . 244 26 160 166 . 171 57 609 111 . 233 Protomatter Decayed 4050 | . 58 . 160 . . . . 54 37 . . . 14 . . 1 . 55 47 . 62 44 . . 108 649 643 95 112 54 344 . 251 1262 Game ------ Seed DisposablePhysicsCarapace Manual? 0 Play Time 02:50:48 Cumulative 256.6 hours Start 2022.06.14 @ 20:01:55 End 2022.06.14 @ 23:30:18 Sessions 1 Manual Loads 0 Difficulty Explorer Special Mode Winter2019/RPGLIKE Game No. 87 Rogue 0 Adventurer 1 Explorer 86 Win Type - Total 16 Types 9/0/4/3/0/0/0/0/0 Lore% 87 Gallery% 87 Achievement% 74 Wizard Run 0 Options --------- ASCII 0 Keyboard 1 Movement Numpad Keybinds 0 Fullscreen 0 Font 14/Terminus Map View 76x50 Tactical HUD 1 Map Filters BRIGHTNESS(150) Filters NONE Steam 1 RUN: 1dcb7f6c-d99a-4a7b-a3ee-0089461da6e8